bitfinex/quotes_BTCUSD_20251205
["timestamp","ask_amount","ask_price","bid_price","bid_amount"]
[1764907839725,0.00023061,92338.0,92337.0,0.24110186]
[1764907842887,0.00023061,92338.0,92337.0,0.24992882]
[1764907843043,0.00023061,92338.0,92337.0,0.24892882]
[1764907843259,0.00023061,92338.0,92337.0,0.25092882]
[1764907844074,0.00023061,92338.0,92337.0,0.25292882]
[1764907844707,0.00023061,92338.0,92337.0,0.25092882]
[1764907845083,0.00023061,92338.0,92337.0,0.25292882]
[1764907847640,0.323,92363.0,92362.0,0.21653926]
[1764907847833,0.323,92363.0,92362.0,0.23804323]
[1764907848254,0.01082649,92366.0,92365.0,0.02150397]
[1764907848499,0.33382637,92367.0,92366.0,0.02150397]
[1764907849332,0.323,92367.0,92366.0,0.02150397]
[1764907850705,0.337,92367.0,92366.0,0.02250397]
[1764907853946,0.37637,92367.0,92366.0,0.001]
[1764907854145,0.39432569,92367.0,92366.0,0.001]
[1764907854349,0.50403075,92367.0,92366.0,0.001]
[1764907854603,0.39432569,92367.0,92366.0,0.001]
[1764907854805,0.39432569,92367.0,92327.0,0.02150397]
[1764907854806,0.01083095,92328.0,92327.0,0.02150397]
[1764907855280,0.01083095,92328.0,92327.0,0.05402417]
[1764907855498,0.01083095,92328.0,92327.0,0.0325202]
[1764907855686,0.01083095,92328.0,92327.0,0.02150397]
[1764907856064,0.01083095,92328.0,92327.0,0.02350397]
[1764907856244,0.01083095,92328.0,92327.0,0.02450397]
[1764907856441,0.01083095,92328.0,92327.0,0.02350397]
[1764907857391,0.01083095,92328.0,92327.0,0.02150397]
[1764907857759,0.02795095,92328.0,92327.0,0.02350397]
[1764907859085,0.06732095,92328.0,92327.0,0.02350397]
[1764907859249,0.06732095,92328.0,92327.0,0.002]
[1764907860493,0.22748455,92314.0,92311.0,0.05402607]
[1764907860788,0.22748455,92314.0,92311.0,0.02150397]
[1764907861760,0.22748455,92314.0,92311.0,0.02350397]
[1764907862453,0.24459799,92317.0,92311.0,0.24016162]
[1764907862454,0.01083235,92316.0,92311.0,0.24016162]
[1764907862665,0.01083235,92316.0,92311.0,0.02350397]
[1764907862845,0.001,92314.0,92311.0,0.03250397]
[1764907863652,0.001,92314.0,92311.0,0.03050397]
[1764907863855,0.001,92314.0,92312.0,0.22748937]
[1764907864431,0.001,92314.0,92313.0,0.02150397]
[1764907865437,0.01712,92317.0,92316.0,0.02150397]
[1764907866507,0.01083095,92328.0,92327.0,0.02150397]
[1764907866712,0.323,92329.0,92328.0,0.02150397]
[1764907866872,0.34012,92329.0,92328.0,0.02150397]
[1764907869159,0.34212,92329.0,92328.0,0.02250397]
[1764907869727,0.325,92329.0,92328.0,0.02250397]
[1764907869929,0.34212,92329.0,92328.0,0.02250397]
[1764907872988,0.38052,92329.0,92328.0,0.02250397]
[1764907873438,0.38052,92329.0,92328.0,0.001]
[1764907874745,0.46006957,92329.0,92328.0,0.001]
[1764907875830,0.38052,92329.0,92328.0,0.001]
[1764907876251,0.41304612,92329.0,92328.0,0.001]
[1764907876767,0.010834,92302.0,92299.0,0.01083435]
[1764907877010,0.010834,92302.0,92301.0,0.02150397]
[1764907877945,0.333834,92302.0,92301.0,0.02150397]
[1764907879068,0.01083376,92304.0,92303.0,0.02150397]
[1764907880238,0.01083376,92304.0,92303.0,0.03150397]
[1764907880465,0.01183376,92304.0,92303.0,0.03350397]
[1764907885749,0.001,92304.0,92303.0,0.03350397]
[1764907886180,0.001,92304.0,92303.0,0.05311835]
[1764907886846,0.001,92304.0,92303.0,0.06917143]
[1764907888348,0.001,92304.0,92303.0,0.13169442]
[1764907889331,0.001,92304.0,92303.0,0.12969442]
[1764907889529,0.01712,92323.0,92320.0,0.01083188]
[1764907889766,0.01712,92323.0,92322.0,0.02150397]
[1764907889972,0.323,92329.0,92328.0,0.02150397]
[1764907890187,0.323,92329.0,92326.0,0.22745426]
[1764907890420,0.01712,92332.0,92331.0,0.02150397]
[1764907892228,0.01083012,92335.0,92332.0,0.01083048]
[1764907892465,0.01712,92334.0,92333.0,0.02150397]
[1764907892851,0.34012,92334.0,92333.0,0.02150397]
[1764907894024,0.34012,92334.0,92333.0,0.02250397]
[1764907899966,0.323,92334.0,92333.0,0.02250397]
[1764907900375,0.06569548,92340.0,92333.0,0.02250397]
[1764907900584,0.05386595,92340.0,92339.0,0.02150397]
[1764907901220,0.06469549,92340.0,92339.0,0.02150397]
[1764907901804,0.07669549,92340.0,92339.0,0.02250397]
[1764907903074,0.06586595,92340.0,92339.0,0.02250397]
[1764907903447,0.012,92340.0,92339.0,0.02250397]
[1764907904019,0.00023059,92346.0,92345.0,0.02150397]
[1764907905430,0.00023059,92346.0,92345.0,0.02350397]
[1764907906145,0.00023059,92346.0,92345.0,0.02550397]
[1764907907379,0.00023059,92346.0,92345.0,0.02350397]
[1764907907842,0.00023059,92346.0,92345.0,0.02550397]
[1764907908044,0.00023059,92346.0,92345.0,0.02750397]
[1764907911932,0.00023059,92346.0,92345.0,0.04713096]
[1764907913406,0.00023059,92346.0,92345.0,0.02750397]
[1764907914571,0.00023059,92346.0,92345.0,0.006]
[1764907914993,0.03833059,92346.0,92345.0,0.006]
[1764907915667,0.01574059,92346.0,92345.0,0.006]
[1764907916643,0.00023059,92346.0,92345.0,0.006]
[1764907917056,0.00023059,92346.0,92343.0,0.22741082]
[1764907917431,0.00023059,92346.0,92345.0,0.005]
[1764907917632,0.00023059,92346.0,92345.0,0.02650397]
[1764907917842,0.00023059,92346.0,92345.0,0.02450397]
[1764907918938,0.00023059,92346.0,92345.0,0.02650397]
[1764907921637,0.00023059,92346.0,92345.0,0.04556689]
[1764907921835,0.00023059,92346.0,92345.0,0.02650397]
[1764907922080,0.00023059,92346.0,92345.0,0.044484]
[1764907922469,0.00023059,92346.0,92345.0,0.02650397]
[1764907924415,0.00023059,92346.0,92345.0,0.02150397]
[1764907924623,0.00023059,92346.0,92345.0,0.2400831]
[1764907925202,0.00023059,92346.0,92345.0,0.2440831]
[1764907925581,0.00023059,92346.0,92345.0,0.25491006]
[1764907928433,0.00023059,92346.0,92345.0,0.2440831]
[1764907943291,0.21654183,92361.0,92345.0,0.2440831]
[1764907943292,0.0002,92380.0,92377.0,0.22732763]
[1764907943496,0.0002,92380.0,92379.0,0.23800339]
[1764907944052,0.0002,92380.0,92379.0,0.2705047]
[1764907944257,0.0002,92380.0,92379.0,0.33302769]
[1764907944889,0.0002,92380.0,92379.0,0.2705047]
[1764907947006,0.0002,92380.0,92379.0,0.2725047]
[1764907947827,0.0002,92380.0,92379.0,0.25100073]
[1764907948236,0.0002,92380.0,92379.0,0.21849942]
[1764907948444,0.0002,92380.0,92379.0,0.22974942]
[1764907948679,0.0002,92380.0,92379.0,0.25125339]
[1764907948881,0.0002,92380.0,92379.0,0.22974942]
[1764907951065,0.0002,92380.0,92379.0,0.002]
[1764907951303,0.03921,92380.0,92379.0,0.02350397]
[1764907951482,0.04018958,92380.0,92379.0,0.002]
[1764907952666,0.04218958,92380.0,92379.0,0.002]
[1764907952907,0.04218958,92380.0,92377.0,0.0108252]
[1764907953083,0.03921,92380.0,92377.0,0.0108252]
[1764907953288,0.03921,92380.0,92379.0,0.002]
[1764907953491,0.01899,92380.0,92379.0,0.002]
[1764907953687,0.01599,92380.0,92379.0,0.002]
[1764907953895,0.01899,92380.0,92377.0,0.0108252]
[1764907954250,0.01899,92380.0,92377.0,0.0128252]
[1764907954462,0.01899,92380.0,92378.0,0.21650176]
[1764907955564,0.0032,92380.0,92378.0,0.21650176]
[1764907955745,0.0002,92380.0,92379.0,0.02150397]
[1764907956157,0.0032,92380.0,92378.0,0.21850176]
[1764907956339,0.0002,92380.0,92379.0,0.02150397]
[1764907956716,0.0032,92380.0,92379.0,0.02150397]
[1764907957037,0.0002,92380.0,92379.0,0.02350397]
[1764907957293,0.0032,92380.0,92379.0,0.02350397]
[1764907958797,0.0032,92380.0,92379.0,0.03800694]
[1764907959313,0.00417958,92380.0,92379.0,0.03800694]
[1764907960067,0.00417958,92380.0,92379.0,0.03600694]
[1764907960468,0.00117958,92380.0,92379.0,0.03800694]
[1764907960893,0.00417958,92380.0,92379.0,0.03800694]
[1764907965249,0.00417958,92380.0,92379.0,0.03600694]
[1764907965688,0.00117958,92380.0,92379.0,0.03800694]
[1764907965853,0.00217958,92380.0,92379.0,0.03800694]
[1764907966054,0.00217958,92380.0,92379.0,0.10052993]
[1764907966258,0.00217958,92380.0,92379.0,0.15010638]
[1764907966655,0.00117958,92380.0,92379.0,0.14810638]
[1764907967092,0.00117958,92380.0,92379.0,0.15010638]
[1764907968528,0.00117958,92380.0,92379.0,0.14910638]
[1764907969068,0.00117958,92380.0,92379.0,0.15210638]
[1764907970302,0.00117958,92380.0,92379.0,0.11960993]
[1764907970620,0.00117958,92380.0,92379.0,0.12394301]
[1764907970782,0.00117958,92380.0,92379.0,0.10944004]
[1764907971180,0.00117958,92380.0,92379.0,0.04691705]
[1764907971378,0.00117958,92380.0,92379.0,0.04258397]
[1764907971586,0.00117958,92380.0,92379.0,0.02550397]
[1764907971785,0.00117958,92380.0,92379.0,0.02450397]
[1764907972180,0.00117958,92380.0,92379.0,0.02150397]
[1764907972571,0.00117958,92380.0,92379.0,0.02350397]
[1764907972772,0.00217958,92380.0,92379.0,0.02350397]
[1764907972995,0.00217958,92380.0,92379.0,0.02150397]
[1764907973206,0.00217958,92380.0,92372.0,0.02150397]
[1764907973207,0.01082567,92373.0,92372.0,0.02150397]
[1764907973610,0.01082567,92373.0,92360.0,0.21654306]
[1764907973611,0.01082661,92365.0,92360.0,0.01082719]
[1764907973813,0.01082626,92368.0,92360.0,0.01082719]
[1764907973814,0.01082626,92368.0,92367.0,0.02150397]
[1764907974526,0.01082649,92366.0,92360.0,0.01082719]
[1764907974703,0.01082649,92366.0,92365.0,0.02150397]
[1764907975095,0.02682649,92366.0,92365.0,0.02150397]
[1764907975859,0.016,92366.0,92365.0,0.02150397]
[1764907976073,0.0505,92366.0,92365.0,0.001]
[1764907985260,0.0505,92366.0,92365.0,0.02250397]
[1764907985467,0.027,92366.0,92365.0,0.02250397]
[1764907986302,0.0505,92366.0,92365.0,0.02250397]
[1764907986961,0.07215967,92366.0,92365.0,0.001]
[1764907987177,0.44451034,92366.0,92365.0,0.001]
[1764907987374,0.38973333,92366.0,92365.0,0.001]
[1764907988494,0.01082872,92347.0,92346.0,0.02150397]
[1764907989512,0.23942883,92349.0,92344.0,0.01082907]
[1764907989717,0.23942883,92349.0,92348.0,0.02150397]
[1764907990294,0.02285848,92349.0,92348.0,0.02150397]
[1764907990795,0.02790837,92350.0,92348.0,0.02150397]
[1764907990796,0.01708,92350.0,92348.0,0.02150397]
[1764907990975,0.01082754,92357.0,92353.0,0.01082801]
[1764907991178,0.01082754,92357.0,92356.0,0.02150397]
[1764907991403,0.02790754,92357.0,92356.0,0.02150397]
[1764907991988,0.01082754,92357.0,92356.0,0.02150397]
[1764907992187,0.01182718,92360.0,92359.0,0.02150397]
[1764907992383,0.02890718,92360.0,92359.0,0.02150397]
[1764907992907,0.04479718,92360.0,92359.0,0.02150397]
[1764907993075,0.22737361,92359.0,92358.0,0.02150397]
[1764907994186,0.24445361,92359.0,92358.0,0.02150397]
[1764907995835,0.25345361,92359.0,92358.0,0.02250397]
[1764907996298,0.03690731,92359.0,92358.0,0.02250397]
[1764907996635,0.03728194,92359.0,92358.0,0.02250397]
[1764908002772,0.03728194,92359.0,92358.0,0.001]
[1764908002998,0.03728194,92359.0,92358.0,0.02250397]
[1764908003362,0.00937463,92359.0,92358.0,0.23905261]
[1764908003563,0.00937463,92359.0,92358.0,0.02250397]
[1764908003874,0.00937463,92359.0,92358.0,0.23905261]
[1764908005121,0.00937463,92359.0,92358.0,0.02250397]
[1764908006720,0.00937463,92359.0,92358.0,0.23905261]
[1764908008570,0.00937463,92359.0,92358.0,0.02250397]
[1764908010579,0.00937463,92359.0,92358.0,0.23905261]
[1764908015715,0.00937463,92359.0,92358.0,0.02250397]
[1764908015920,0.02526463,92359.0,92358.0,0.02250397]
[1764908016126,0.00937463,92359.0,92358.0,0.02250397]
[1764908016685,0.00937463,92359.0,92358.0,0.23905261]
[1764908023988,0.00937463,92359.0,92358.0,0.02250397]
[1764908024188,0.06054463,92359.0,92358.0,0.001]
[1764908024564,0.4052043,92359.0,92358.0,0.001]
[1764908024769,0.38354463,92359.0,92358.0,0.001]
[1764908026030,0.49324969,92359.0,92358.0,0.001]
[1764908026391,0.50337609,92359.0,92358.0,0.001]
[1764908027265,0.38354463,92359.0,92358.0,0.001]
[1764908027414,4.95769082,92359.0,92358.0,0.001]
[1764908027618,4.96852153,92359.0,92358.0,0.001]
[1764908028033,0.01083095,92328.0,92324.0,0.01083141]
[1764908028185,0.01083106,92327.0,92324.0,0.01083141]
[1764908028435,0.01083095,92328.0,92325.0,0.0108313]
[1764908029088,0.01083095,92328.0,92324.0,0.01083141]
[1764908029323,0.01083095,92328.0,92325.0,0.0108313]
[1764908029542,0.01083106,92327.0,92324.0,0.002]
[1764908029730,0.03478106,92327.0,92323.0,0.01083153]
[1764908029940,0.01083106,92327.0,92323.0,0.01083153]
[1764908030145,0.01083106,92327.0,92325.0,0.002]
[1764908030352,0.01083106,92327.0,92325.0,0.013]
[1764908030696,0.01283095,92328.0,92325.0,0.013]
[1764908030917,0.002,92328.0,92326.0,0.2166237]
[1764908031706,0.01196,92329.0,92326.0,0.22745488]
[1764908031907,0.01196,92329.0,92328.0,0.02150397]
[1764908032093,0.01712,92332.0,92331.0,0.02150397]
[1764908033123,0.01712,92332.0,92331.0,0.02350397]
[1764908034973,0.01196,92341.0,92332.0,0.01083048]
[1764908035199,0.323,92339.0,92337.0,0.02150397]
[1764908035402,0.02908,92338.0,92337.0,0.02150397]
[1764908035611,0.04567,92338.0,92337.0,0.02150397]
[1764908036207,0.06962,92338.0,92337.0,0.02150397]
[1764908036432,0.07062,92338.0,92337.0,0.02950397]
[1764908036632,0.001,92338.0,92337.0,0.02950397]
[1764908037819,0.001,92338.0,92337.0,0.03050397]
[1764908038497,0.001,92338.0,92337.0,0.02950397]
[1764908038749,0.00023055,92354.0,92353.0,0.02150397]
[1764908038949,0.00023055,92354.0,92353.0,0.23806434]
[1764908040452,0.00223055,92354.0,92353.0,0.24806434]
[1764908041222,0.00223055,92354.0,92353.0,0.25006434]
[1764908048160,0.00223055,92354.0,92353.0,0.26714434]
[1764908048573,0.00223055,92354.0,92353.0,0.27910434]
[1764908049178,0.00023055,92354.0,92353.0,0.26910434]
[1764908049602,0.00123055,92354.0,92353.0,0.27910434]
[1764908050215,0.00123055,92354.0,92353.0,0.27710434]
[1764908050600,0.00123055,92354.0,92353.0,0.28010434]
[1764908051500,0.00123055,92354.0,92353.0,0.34262733]
[1764908051726,0.0002,92380.0,92379.0,0.23800339]
[1764908052361,0.00094907,92380.0,92379.0,0.23800339]
[1764908054324,0.00994907,92380.0,92379.0,0.23900339]
[1764908064646,0.04875907,92380.0,92379.0,0.21749942]
[1764908064864,0.04875907,92380.0,92379.0,0.23900339]
[1764908065024,0.00994907,92380.0,92379.0,0.23900339]
[1764908081701,0.00994907,92380.0,92379.0,0.02250397]
[1764908083010,0.26629614,92380.0,92379.0,0.02250397]
[1764908083206,0.26629614,92380.0,92379.0,0.001]
[1764908083755,0.67660813,92380.0,92379.0,0.001]
[1764908084337,0.59942414,92380.0,92379.0,0.001]
[1764908084697,0.01082649,92366.0,92365.0,0.02150397]
[1764908085109,0.06127227,92366.0,92365.0,0.02150397]
[1764908086118,0.06527227,92366.0,92365.0,0.02150397]
[1764908086753,0.06527227,92366.0,92365.0,0.02250397]
[1764908091791,0.05444578,92366.0,92365.0,0.02250397]
[1764908091994,0.03139578,92366.0,92365.0,0.02250397]
[1764908095043,0.05444578,92366.0,92365.0,0.02250397]
[1764908095410,0.05444578,92366.0,92365.0,0.001]
[1764908095411,0.59397567,92366.0,92365.0,0.001]
[1764908101303,5.09547567,92366.0,92365.0,0.001]
[1764908101950,0.01082954,92340.0,92339.0,0.02150397]
[1764908102328,0.06092954,92340.0,92339.0,0.02150397]
[1764908102939,0.0501,92340.0,92339.0,0.02150397]
[1764908103177,0.0501,92340.0,92339.0,0.23809717]
[1764908103178,0.02705,92340.0,92339.0,0.23809717]
[1764908103361,0.02705,92340.0,92339.0,0.24009717]
[1764908104335,0.01196,92340.0,92339.0,0.24009717]
[1764908104656,0.01296,92340.0,92339.0,0.24609717]
[1764908105586,0.001,92340.0,92339.0,0.24609717]
[1764908107085,0.00023053,92362.0,92360.0,0.06252299]
[1764908107291,0.0002,92380.0,92379.0,0.23800339]
[1764908107704,0.00071856,92380.0,92379.0,0.26073601]
[1764908108998,0.00171856,92380.0,92379.0,0.26673601]
[1764908109776,0.00171856,92380.0,92379.0,0.26873601]
[1764908109999,0.00071856,92380.0,92379.0,0.26273601]
[1764908110528,0.00071856,92380.0,92379.0,0.26873601]
[1764908117386,0.00071856,92380.0,92379.0,0.24723204]
[1764908117587,0.00071856,92380.0,92379.0,0.28581601]
[1764908118928,0.00071856,92380.0,92379.0,0.26431204]
[1764908119241,0.00071856,92380.0,92379.0,0.28581601]
[1764908119466,0.00071856,92380.0,92379.0,0.26873601]
[1764908120233,0.00071856,92380.0,92379.0,0.26673601]
[1764908120663,0.00071856,92380.0,92379.0,0.26273601]
[1764908121092,0.00071856,92380.0,92379.0,0.26473601]
[1764908121887,0.00071856,92380.0,92379.0,0.26273601]
[1764908122213,0.00071856,92380.0,92379.0,0.26473601]
[1764908123037,0.00071856,92380.0,92379.0,0.02550397]
[1764908123625,0.01713856,92380.0,92379.0,0.02550397]
[1764908123791,0.04056856,92380.0,92379.0,0.02550397]
[1764908123988,0.04056856,92380.0,92379.0,0.004]
[1764908125226,0.05139341,92380.0,92377.0,0.0108252]
[1764908125456,0.01082497,92379.0,92376.0,0.03232929]
[1764908125608,0.00046095,92378.0,92376.0,0.03232929]
[1764908125810,0.01082497,92379.0,92376.0,0.03232929]
[1764908126501,0.22732466,92379.0,92377.0,0.002]
[1764908126924,0.22732466,92379.0,92376.0,0.02150397]
[1764908127327,0.22732466,92379.0,92376.0,0.02450397]
[1764908127527,0.22732466,92379.0,92376.0,0.02150397]
[1764908127849,0.22732466,92379.0,92377.0,0.002]
[1764908128012,0.22732466,92379.0,92378.0,0.02150397]
[1764908128429,0.24374466,92379.0,92376.0,0.002]
[1764908128623,0.24374466,92379.0,92378.0,0.02150397]
[1764908129404,0.26717466,92379.0,92378.0,0.02150397]
[1764908130143,0.26717466,92379.0,92378.0,0.02350397]
[1764908130340,0.26717466,92379.0,92378.0,0.02550397]
[1764908130538,0.24374466,92379.0,92378.0,0.02550397]
[1764908130769,0.02724497,92379.0,92378.0,0.02550397]
[1764908130928,0.01102485,92380.0,92379.0,0.02150397]
[1764908131578,0.0002,92380.0,92379.0,0.02150397]
[1764908131776,0.0002,92380.0,92379.0,0.25705911]
[1764908131978,0.0002,92380.0,92379.0,0.23800339]
[1764908132361,0.0002,92380.0,92379.0,0.24000339]
[1764908132835,0.0002,92380.0,92379.0,0.21849942]
[1764908133037,0.0002,92380.0,92379.0,0.24000339]
[1764908133837,0.0002,92380.0,92379.0,0.24200339]
[1764908136449,0.00071856,92380.0,92379.0,0.24200339]
[1764908138082,0.00071856,92380.0,92379.0,0.02550397]
[1764908138717,0.01683856,92380.0,92379.0,0.02550397]
[1764908139078,0.01683856,92380.0,92379.0,0.004]
[1764908139079,0.04079856,92380.0,92379.0,0.004]
[1764908139687,0.00071856,92380.0,92379.0,0.004]
[1764908139885,0.00071856,92380.0,92379.0,0.02550397]
[1764908143038,0.00071856,92380.0,92379.0,0.004]
[1764908143240,0.00071856,92380.0,92379.0,0.02550397]
[1764908143989,0.04079856,92380.0,92379.0,0.004]
[1764908149329,0.01683856,92380.0,92379.0,0.004]
[1764908149537,0.00071856,92380.0,92379.0,0.004]
[1764908149891,0.00071856,92380.0,92379.0,0.02550397]
[1764908152966,0.00071856,92380.0,92379.0,0.04461479]
[1764908156995,0.00071856,92380.0,92379.0,0.02550397]
[1764908164921,0.00071856,92380.0,92379.0,0.24200339]
[1764908165736,0.00071856,92380.0,92379.0,0.02550397]
[1764908165952,0.04032856,92380.0,92379.0,0.004]
[1764908166503,0.01719856,92380.0,92379.0,0.004]
[1764908167677,0.04154856,92380.0,92379.0,0.004]
[1764908168613,0.21649942,92379.0,92378.0,0.02150397]
[1764908168818,0.25655942,92379.0,92378.0,0.02150397]
[1764908169919,0.0002,92380.0,92379.0,0.21649942]
[1764908170135,0.0002,92380.0,92379.0,0.23800339]
[1764908171716,0.0002,92380.0,92379.0,0.24000339]
[1764908172539,0.0002,92380.0,92379.0,0.24100339]
[1764908173923,0.0002,92380.0,92379.0,0.02450397]
[1764908176792,0.0002,92380.0,92379.0,0.24100339]
[1764908177227,0.00071856,92380.0,92379.0,0.24100339]
[1764908179412,0.00071856,92380.0,92379.0,0.02450397]
[1764908179824,0.06243823,92380.0,92379.0,0.003]
[1764908180378,0.38543823,92380.0,92379.0,0.003]
[1764908180585,0.36377856,92380.0,92379.0,0.002]
[1764908180987,0.01082696,92362.0,92359.0,0.02150397]
[1764908181925,0.239773,92364.0,92359.0,0.03233128]
[1764908182090,0.239773,92364.0,92363.0,0.02150397]
[1764908182091,0.01241,92364.0,92363.0,0.02150397]
[1764908184829,0.0002,92380.0,92369.0,0.02150397]
[1764908185028,0.0002305,92370.0,92369.0,0.02150397]
[1764908185203,0.0002305,92370.0,92369.0,0.0404616]
[1764908186019,0.0052305,92370.0,92369.0,0.0404616]
[1764908186222,0.0002305,92370.0,92369.0,0.0404616]
[1764908186426,0.0002305,92370.0,92369.0,0.0434616]
[1764908187654,0.0002305,92370.0,92369.0,0.0454616]
[1764908191809,0.0002305,92370.0,92369.0,0.02650397]
[1764908196059,0.0002305,92370.0,92369.0,0.24302682]
[1764908200858,0.0002305,92370.0,92369.0,0.30554981]
[1764908202598,5e-07,92370.0,92369.0,0.30554981]
[1764908202835,0.0002,92380.0,92379.0,0.30052638]
[1764908203043,0.0002,92380.0,92379.0,0.31760638]
[1764908203847,0.0002,92380.0,92379.0,0.29610241]
[1764908204074,0.0002,92380.0,92379.0,0.31760638]
[1764908205052,0.0002,92380.0,92379.0,0.32160638]
[1764908205907,0.0002,92380.0,92379.0,0.32893936]
[1764908208497,0.00048807,92380.0,92379.0,0.32893936]
[1764908212087,0.0002,92390.0,92389.0,0.23797995]
[1764908212953,0.0002,92390.0,92389.0,0.24231263]
[1764908213479,0.0002,92390.0,92389.0,0.02583665]
[1764908214524,0.0002,92390.0,92389.0,0.02883665]
[1764908215868,0.02274,92404.0,92389.0,0.02883665]
[1764908215869,0.00119999,92400.0,92399.0,0.21645255]
[1764908216095,0.0002,92400.0,92399.0,0.31755951]
[1764908216616,0.0002,92400.0,92399.0,0.32189141]
[1764908217440,0.0002,92400.0,92399.0,0.32289141]
[1764908217873,0.0002,92400.0,92399.0,0.32389141]
[1764908218256,0.000776,92400.0,92399.0,0.32689141]
[1764908218653,0.000776,92400.0,92399.0,0.32989141]
[1764908222590,0.0002,92410.0,92409.0,0.30045609]
[1764908223160,0.0002,92410.0,92409.0,0.30478775]
[1764908224172,0.0002,92410.0,92409.0,0.30878775]
[1764908224956,0.0002,92410.0,92409.0,0.30678775]
[1764908225139,0.0002,92410.0,92409.0,0.30778775]
[1764908225434,0.0002,92410.0,92409.0,0.31278775]
[1764908228198,0.00048793,92410.0,92409.0,0.31278775]
[1764908236792,0.00048793,92410.0,92409.0,0.30978775]
[1764908236990,0.00048793,92410.0,92409.0,0.31278775]
[1764908237253,0.00048793,92410.0,92409.0,0.30778775]
[1764908237652,0.00048793,92410.0,92409.0,0.24926476]
[1764908238808,0.00048793,92410.0,92409.0,0.24526476]
[1764908239826,0.00048793,92410.0,92409.0,0.24826476]
[1764908242287,0.00048793,92410.0,92409.0,0.03183563]
[1764908242902,0.00048793,92410.0,92409.0,0.01033166]
[1764908242903,0.01700793,92410.0,92409.0,0.01033166]
[1764908243107,0.59984192,92410.0,92409.0,0.003]
[1764908243606,0.59984192,92410.0,92409.0,0.002]
[1764908243607,0.58055472,92410.0,92409.0,0.002]
[1764908243786,0.58055472,92410.0,92409.0,0.004]
[1764908243989,0.58055472,92410.0,92409.0,0.002]
[1764908244230,0.58055472,92410.0,92386.0,0.03249874]
[1764908244231,0.01082344,92392.0,92391.0,0.02150397]
[1764908244627,0.06367344,92392.0,92391.0,0.02150397]
[1764908245029,0.03955344,92392.0,92391.0,0.02150397]
[1764908245438,0.03955344,92392.0,92389.0,0.01082379]
[1764908245640,0.03955344,92392.0,92391.0,0.02150397]
[1764908246048,0.02873,92392.0,92391.0,0.02150397]
[1764908246463,0.01221,92392.0,92391.0,0.02250397]
[1764908246779,0.002,92392.0,92391.0,0.2174713]
[1764908247006,0.002,92392.0,92391.0,0.23897527]
[1764908247745,0.0279018,92406.0,92399.0,0.23795652]
[1764908247869,0.01708,92406.0,92405.0,0.02150397]
[1764908248220,0.0336,92406.0,92405.0,0.02150397]
[1764908248646,0.05772,92406.0,92405.0,0.02150397]
[1764908249945,0.05772,92406.0,92405.0,0.001]
[1764908250168,0.05972,92406.0,92405.0,0.001]
[1764908250500,0.38272,92406.0,92405.0,0.001]
[1764908251069,0.38072,92406.0,92405.0,0.001]
[1764908251457,0.39672,92406.0,92405.0,0.002]
[1764908251655,0.38072,92406.0,92405.0,0.001]
[1764908252057,0.38072,92406.0,92405.0,0.002]
[1764908252058,0.39672,92406.0,92405.0,0.002]
[1764908252263,0.39672,92406.0,92405.0,0.001]
[1764908258746,0.37964,92406.0,92405.0,0.001]
[1764908258957,0.39672,92406.0,92405.0,0.001]
[1764908261131,0.40904873,92406.0,92405.0,0.001]
[1764908261334,0.39672,92406.0,92405.0,0.001]
[1764908262041,0.40754508,92406.0,92405.0,0.001]
[1764908262375,4.90904508,92406.0,92405.0,0.001]
[1764908263802,0.01082391,92388.0,92385.0,0.03232823]
[1764908264003,0.02794,92386.0,92385.0,0.02150397]
[1764908264475,0.05218,92386.0,92385.0,0.02150397]
[1764908264879,0.01082473,92381.0,92376.0,0.04330855]
[1764908265115,0.01082473,92381.0,92380.0,0.02150397]
[1764908265246,0.05043473,92381.0,92380.0,0.02150397]
[1764908266859,0.04061,92381.0,92380.0,0.03150397]
[1764908267070,0.001,92381.0,92380.0,0.03150397]
[1764908269531,0.001,92381.0,92380.0,0.03350397]
[1764908269739,0.001,92381.0,92380.0,0.05200654]
[1764908270304,0.001,92381.0,92380.0,0.03350397]
[1764908271715,0.001,92381.0,92380.0,0.012]
[1764908272125,0.001,92381.0,92380.0,0.03350397]
[1764908276443,0.001,92381.0,92380.0,0.012]
[1764908276444,0.25710473,92381.0,92380.0,0.012]
[1764908278877,0.001,92381.0,92380.0,0.22849707]
[1764908279008,0.001,92381.0,92380.0,0.012]
[1764908281672,0.01637,92381.0,92380.0,0.03350397]
[1764908283559,0.001,92381.0,92380.0,0.25000104]
[1764908313582,0.01699,92381.0,92380.0,0.25000104]
[1764908314137,0.001,92381.0,92380.0,0.25000104]
[1764908317461,0.01695,92381.0,92380.0,0.25000104]
[1764908317687,0.04169,92381.0,92380.0,0.25000104]
[1764908319805,0.01695,92381.0,92380.0,0.25000104]
[1764908320028,0.001,92381.0,92380.0,0.25000104]
[1764908326051,0.001,92381.0,92380.0,0.27574103]
[1764908385542,0.001,92381.0,92380.0,0.66126402]
[1764908387424,0.01222,92409.0,92405.0,0.01082192]
[1764908387625,0.01222,92409.0,92407.0,0.23793778]
[1764908387827,0.02505035,92408.0,92407.0,0.23793778]
[1764908388125,0.04137035,92408.0,92407.0,0.25015778]
[1764908388841,0.04137035,92408.0,92407.0,0.25215778]
[1764908391020,0.04137035,92408.0,92407.0,0.25415778]
[1764908391224,0.00023035,92408.0,92407.0,0.25415778]
[1764908395759,0.01655035,92408.0,92407.0,0.25415778]
[1764908396109,0.04137035,92408.0,92407.0,0.03772397]
[1764908397345,0.04137035,92408.0,92407.0,0.01622]
[1764908397750,0.25780182,92408.0,92407.0,0.01622]
[1764908397957,0.04137035,92408.0,92407.0,0.01622]
[1764908398180,0.04137035,92408.0,92407.0,0.004]
[1764908398366,0.25780182,92408.0,92407.0,0.004]
[1764908398715,0.04137035,92408.0,92407.0,0.004]
[1764908398917,0.06303002,92408.0,92407.0,0.004]
[1764908399170,0.06303002,92408.0,92407.0,0.22043381]
[1764908399601,0.06303002,92408.0,92407.0,0.004]
[1764908403175,0.04137035,92408.0,92407.0,0.22043381]
[1764908403447,0.01655035,92408.0,92407.0,0.24193778]
[1764908404790,0.00023035,92408.0,92407.0,0.24193778]
[1764908405144,0.00023035,92408.0,92407.0,0.25848813]
[1764908412749,0.00023035,92408.0,92407.0,0.25648813]
[1764908413575,0.00023035,92408.0,92407.0,0.26048813]
[1764908452130,0.01671035,92408.0,92407.0,0.26048813]
[1764908452354,0.03946035,92408.0,92407.0,0.26048813]
[1764908452560,0.03946035,92408.0,92407.0,0.006]